fUSD/lending_fUSD_20250112
["ID","MTS","AMOUNT","RATE_DAILY","PERIOD"]
[348613391,1736674232572,-9623.61,9.307e-05,2]
[348613392,1736674232581,-153.74144462,9.529e-05,2]
[348613393,1736674232591,-1000.0,9.529e-05,2]
[348613394,1736674232600,-175.71,9.603e-05,2]
[348613395,1736674232610,-3814.19671709,9.681e-05,2]
[348613396,1736674232619,-3127.18232456,9.8e-05,2]
[348613397,1736674232629,-150.0,9.863e-05,2]
[348613398,1736674232639,-150.0,9.863e-05,2]
[348613399,1736674232649,-150.0,9.863e-05,2]
[348613400,1736674232659,-150.0,9.863e-05,2]
[348613401,1736674232669,-1114.9675,9.898e-05,2]
[348613402,1736674232680,-1393.12791069,9.915e-05,2]
[348613403,1736674232691,-1393.12791069,9.93e-05,2]
[348613404,1736674232700,-1393.12791069,9.946e-05,2]
[348613405,1736674232710,-1393.12791069,9.961e-05,2]
[348613406,1736674232719,-164.42294645,9.973e-05,2]
[348613407,1736674232728,-151.85323823,9.973e-05,2]
[348613408,1736674232738,-159.84551394,9.973e-05,2]
[348613409,1736674232747,-159.84551394,9.973e-05,2]
[348613410,1736674232756,-159.0311065,9.973e-05,2]
[348613411,1736674232765,-500.0,9.973e-05,2]
[348613412,1736674232775,-161.76129351,9.973e-05,2]
[348613413,1736674232784,-159.99029405,9.973e-05,2]
[348613414,1736674232794,-1393.12791069,9.976e-05,2]
[348613415,1736674232803,-150.0,9.987e-05,2]
[348613416,1736674232814,-30164.96892578,9.988e-05,2]
[348613417,1736674232823,-1393.12791069,9.991e-05,2]
[348613418,1736674232833,-500.0,9.997e-05,2]
[348613419,1736674232844,-708.23,9.997e-05,2]
[348613420,1736674232853,-751.09,9.997e-05,2]
[348613421,1736674232865,-500.0,9.997e-05,2]
[348613422,1736674232874,-573.76,9.997e-05,2]
[348613423,1736674232883,-500.0,9.997e-05,2]
[348613425,1736674232892,-563.33,9.997e-05,2]
[348613427,1736674232901,-500.0,9.997e-05,2]
[348613429,1736674232909,-500.0,9.997e-05,2]
[348613430,1736674232919,-500.0,9.997e-05,2]
[348613431,1736674232927,-511.29,9.997e-05,2]
[348613432,1736674232936,-500.0,9.997e-05,2]
[348613433,1736674232945,-500.0,9.997e-05,2]
[348613434,1736674232954,-500.0,9.997e-05,2]
[348613435,1736674232962,-500.0,9.997e-05,2]
[348613436,1736674232971,-611.88,9.997e-05,2]
[348613437,1736674232980,-865.97,9.997e-05,2]
[348613438,1736674232989,-500.0,9.997e-05,2]
[348613439,1736674232998,-500.0,9.997e-05,2]
[348613440,1736674233007,-929.92,9.997e-05,2]
[348613441,1736674233016,-607.93,9.997e-05,2]
[348613442,1736674233025,-552.40399881,9.997e-05,2]
[348613443,1736674233039,-665.96,9.997e-05,2]
[348613444,1736674233048,-500.0,9.997e-05,2]
[348613445,1736674233058,-539.3,9.997e-05,2]
[348613446,1736674233069,-736.65,9.997e-05,2]
[348613447,1736674233081,-500.0,9.997e-05,2]
[348613448,1736674233091,-613.95,9.997e-05,2]
[348613450,1736674233101,-615.25,9.997e-05,2]
[348613452,1736674233111,-500.0,9.997e-05,2]
[348613454,1736674233120,-521.27,9.997e-05,2]
[348613456,1736674233131,-500.0,9.997e-05,2]
[348613458,1736674233140,-500.0,9.997e-05,2]
[348613460,1736674233150,-578.84,9.997e-05,2]
[348613462,1736674233162,-542.19,9.997e-05,2]
[348613464,1736674233172,-500.0,9.997e-05,2]
[348613465,1736674233181,-584.16,9.997e-05,2]
[348613468,1736674233191,-810.28,9.997e-05,2]
[348613470,1736674233201,-946.93,9.997e-05,2]
[348613472,1736674233211,-1369.11272467,9.997e-05,2]
[348613474,1736674233221,-500.0,9.997e-05,2]
[348613476,1736674233231,-500.0,9.997e-05,2]
[348613478,1736674233242,-500.74,9.997e-05,2]
[348613480,1736674233253,-541.47,9.997e-05,2]
[348613482,1736674233263,-500.0,9.997e-05,2]
[348613484,1736674233272,-500.0,9.997e-05,2]
[348613486,1736674233282,-608.32,9.997e-05,2]
[348613488,1736674233292,-1056.95,9.997e-05,2]
[348613490,1736674233302,-975.21,9.997e-05,2]
[348613492,1736674233312,-1068.89,9.997e-05,2]
[348613494,1736674233321,-1046.38,9.997e-05,2]
[348613496,1736674233331,-500.0,9.997e-05,2]
[348613498,1736674233341,-664.4,9.997e-05,2]
[348613499,1736674233351,-500.0,9.997e-05,2]
[348613500,1736674233360,-500.0,9.997e-05,2]
[348613502,1736674233370,-577.56,9.997e-05,2]
[348613503,1736674233380,-500.0,9.997e-05,2]
[348613506,1736674233389,-500.0,9.997e-05,2]
[348613508,1736674233399,-521.56,9.997e-05,2]
[348613510,1736674233409,-679.23,9.997e-05,2]
[348613512,1736674233419,-521.1,9.997e-05,2]
[348613514,1736674233429,-500.0,9.997e-05,2]
[348613516,1736674233438,-500.0,9.997e-05,2]
[348613518,1736674233448,-3024.6,9.998e-05,2]
[348613520,1736674233457,-1430.75,9.998e-05,2]
[348613522,1736674233467,-1958.58,9.998e-05,2]
[348613524,1736674233476,-1293.48,9.998e-05,2]
[348613526,1736674233485,-1468.55,9.998e-05,2]
[348613528,1736674233496,-500.0,9.998e-05,2]
[348613530,1736674233506,-834.41,9.998e-05,2]
[348613532,1736674233515,-2011.53,9.998e-05,2]
[348613534,1736674233525,-904.86,9.998e-05,2]
[348613536,1736674233535,-855.8,9.998e-05,2]
[348613538,1736674233544,-805.01,9.998e-05,2]
[348613540,1736674233554,-500.0,9.998e-05,2]
[348613542,1736674233564,-1161.99,9.998e-05,2]
[348613544,1736674233574,-903.49,9.998e-05,2]
[348613546,1736674233584,-599.2,9.998e-05,2]
[348613548,1736674233593,-1306.83,9.998e-05,2]
[348613550,1736674233603,-799.91,9.998e-05,2]
[348613552,1736674233612,-891.83,9.998e-05,2]
[348613554,1736674233622,-1306.2,9.998e-05,2]
[348613555,1736674233632,-1584.08,9.998e-05,2]
[348613556,1736674233641,-699.29,9.998e-05,2]
[348613557,1736674233651,-1680.99,9.998e-05,2]
[348613558,1736674233661,-613.58590833,9.998e-05,2]
[348613559,1736674233670,-500.0,9.998e-05,2]
[348613560,1736674233679,-500.0,9.998e-05,2]
[348613561,1736674233689,-2173.04,9.998e-05,2]
[348613562,1736674233699,-2509.26,9.998e-05,2]
[348613563,1736674233708,-500.0,9.998e-05,2]
[348613564,1736674233717,-703.45,9.998e-05,2]
[348613565,1736674233726,-1246.69,9.998e-05,2]
[348613566,1736674233736,-6890.94,9.998e-05,2]
[348613567,1736674233746,-2349.46,9.998e-05,2]
[348613568,1736674233756,-500.0,9.998e-05,2]
[348613569,1736674233767,-3193.69,9.998e-05,2]
[348613570,1736674233777,-500.0,9.998e-05,2]
[348613571,1736674233787,-500.0,9.998e-05,2]
[348613572,1736674233797,-500.0,9.998e-05,2]
[348613573,1736674233807,-500.0,9.998e-05,2]
[348613574,1736674233816,-197.91,9.998e-05,2]
[348613575,1736674233826,-1511.57,9.998e-05,2]
[348613576,1736674233835,-3752.98,9.998e-05,2]
[348613577,1736674233845,-908.82,9.998e-05,2]
[348613578,1736674233854,-2797.9,9.998e-05,2]
[348613579,1736674233864,-969.33,9.998e-05,2]
[348613580,1736674233874,-1150.24,9.998e-05,2]
[348613581,1736674233884,-1313.54,9.998e-05,2]
[348613582,1736674233894,-1381.02686591,9.998e-05,2]
[348613583,1736674233904,-500.0,9.998e-05,2]
[348613584,1736674233913,-1444.62,9.998e-05,2]
[348613585,1736674233923,-1853.01,9.998e-05,2]
[348613586,1736674233933,-1381.02686573,9.998e-05,2]
[348613587,1736674233943,-1381.02686573,9.998e-05,2]
[348613588,1736674233952,-1381.02686573,9.998e-05,2]
[348613589,1736674233962,-1381.02686573,9.998e-05,2]
[348613590,1736674233971,-1381.02686573,9.999e-05,2]
[348613591,1736674233981,-1121.18,9.999e-05,2]
[348613592,1736674233991,-849.91,9.999e-05,2]
[348613593,1736674234001,-500.0,9.999e-05,2]
[348613594,1736674234011,-500.0,9.999e-05,2]
[348613595,1736674234020,-1000.0,9.999e-05,2]
[348613596,1736674234030,-1057.56,9.999e-05,2]
[348613597,1736674234040,-500.0,9.999e-05,2]
[348613598,1736674234049,-2684.07,9.999e-05,2]
[348613599,1736674234059,-2166.7,9.999e-05,2]
[348613600,1736674234068,-1388.22,9.999e-05,2]
[348613601,1736674234081,-500.0,9.999e-05,2]
[348613602,1736674234090,-2359.88,9.999e-05,2]
[348613603,1736674234101,-3576.61,9.999e-05,2]
[348613604,1736674234111,-1114.35,9.999e-05,2]
[348613605,1736674234122,-2039.03,9.999e-05,2]
[348613606,1736674234131,-500.0,9.999e-05,2]
[348613607,1736674234141,-1397.91,9.999e-05,2]
[348613608,1736674234151,-1954.93,9.999e-05,2]
[348613609,1736674234161,-1041.06,9.999e-05,2]
[348613610,1736674234171,-567.85,9.999e-05,2]
[348613611,1736674234180,-1910.54,9.999e-05,2]
[348613612,1736674234189,-500.0,9.999e-05,2]
[348613613,1736674234199,-500.0,9.999e-05,2]
[348613614,1736674234209,-646.05,9.999e-05,2]
[348613615,1736674234218,-500.0,9.999e-05,2]
[348613616,1736674234227,-500.0,9.999e-05,2]
[348613617,1736674234237,-500.0,9.999e-05,2]
[348613618,1736674234246,-1235.34,9.999e-05,2]
[348613619,1736674234256,-500.0,9.999e-05,2]
[348613620,1736674234265,-2224.54,9.999e-05,2]
[348613621,1736674234275,-1086.58,9.999e-05,2]
[348613622,1736674234285,-500.9347913,9.999e-05,2]
[348613623,1736674234295,-1139.47,9.999e-05,2]
[348613624,1736674234304,-640.84,9.999e-05,2]
[348613625,1736674234314,-510.3315999,9.999e-05,2]
[348613626,1736674234324,-501.02434077,9.999e-05,2]
[348613627,1736674234333,-500.0,9.999e-05,2]
[348613628,1736674234344,-500.0,9.999e-05,2]
[348613629,1736674234355,-500.0,9.999e-05,2]
[348613630,1736674234365,-501.19180777,9.999e-05,2]
[348613631,1736674234375,-500.0,9.999e-05,2]
[348613632,1736674234385,-500.0,9.999e-05,2]
[348613633,1736674234395,-500.0,9.999e-05,2]
[348613634,1736674234404,-275.37591735,9.999e-05,2]
[348613635,1736674234413,-502.58153223,9.999e-05,2]
[348613636,1736674234423,-500.0,9.999e-05,2]
[348613637,1736674234432,-500.0,9.999e-05,2]
[348613638,1736674234442,-208.27996086,9.999e-05,2]
[348613639,1736674234452,-71120.38959384,0.0001,2]
[348613640,1736674234466,-4003.38799409,0.0001,2]
[348613641,1736674234494,-263.1515195,0.0001,2]
[348613642,1736674234507,-321.62,0.0001,2]
[348613643,1736674234519,-273.78627064,0.0001,2]
[348613644,1736674234530,-528.395,0.0001,2]
[348613645,1736674234543,-2531.25,0.0001,2]
[348613646,1736674234554,-21335.9442092,0.0001,2]
[348613647,1736674234566,-6515.9457649,0.0001,2]
[348613648,1736674234578,-1186.48681213,0.0001,2]
[348613652,1736674238317,-500.0,9.997e-05,2]
[348613653,1736674238327,-1381.02686573,9.999e-05,2]
[348613654,1736674238337,-1381.02686573,9.999e-05,2]
[348613655,1736674238346,-500.0,9.999e-05,2]
[348613656,1736674238356,-1001.64,9.999e-05,2]
[348613657,1736674238365,-500.0,9.999e-05,2]
[348613658,1736674238375,-500.0,9.999e-05,2]
[348613659,1736674238386,-500.0,9.999e-05,2]
[348613660,1736674238395,-603.8,9.999e-05,2]
[348613661,1736674238404,-500.0,9.999e-05,2]
[348613662,1736674238415,-500.0,9.999e-05,2]
[348613663,1736674238424,-1439.61840722,0.0001,2]
[348613664,1736674238437,-315.92091092,0.0001,2]
[348613665,1736674238457,-644.53635516,0.0001,2]
[348613666,1736674238484,-822.49017547,0.0001,2]
[348613667,1736674238497,-801.66396123,0.0001,2]
[348613668,1736674238508,-10981.8642812,0.0001,2]
[348613669,1736674238520,-507.39605854,0.0001,2]
[348613670,1736674238540,-2129.05365,0.0001,2]
[348613671,1736674238559,-7925.56024198,0.0001,2]
[348613672,1736674238571,-12073.477402,0.0001,2]
[348613673,1736674238597,-1229.78743294,0.0001,2]
[348613674,1736674238609,-795.39,0.0001,2]
[348613675,1736674238619,-1042.8357821,0.0001,2]
[348613676,1736674238632,-502.5,0.0001,2]
[348613677,1736674238660,-2859650.74913286,0.0001,2]
[348613859,1736674240699,-500.0,9.999e-05,2]
[348613860,1736674240708,-539.68586,0.0001,2]
[348613861,1736674240719,-3766.77650398,0.0001,2]
[348613862,1736674240730,-9629.54759372,0.0001,2]
[348613863,1736674240741,-2943.6,0.0001,2]
[348613864,1736674240762,-17696.1602744,0.0001,2]
[348613865,1736674240872,-469.97,0.0001,2]
[348613866,1736674240883,-517.33,0.0001,2]
[348613867,1736674240894,-463.67,0.0001,2]
[348613868,1736674240905,-297.69,0.0001,2]
[348613869,1736674240917,-764.75220241,0.0001,2]
[348613870,1736674240971,-357.16206222,9.998e-05,2]
[348613871,1736674240983,-142.83793778,9.998e-05,2]
[348613872,1736674240992,-792.1,9.999e-05,2]
[348613873,1736674241003,-15860.35340412,0.0001,2]
[348613874,1736674241015,-1013.16,0.0001,2]
[348614029,1736674243609,-795.79,9.997e-05,2]
[348614031,1736674243618,-1381.02686573,9.999e-05,2]
[348614032,1736674243627,-976.6,9.999e-05,2]
[348614033,1736674243636,-1683177.75137408,0.0001,2]
[348614034,1736674243647,-2116.97344522,0.0001,2]
[348614035,1736674243664,-24192.02161558,0.0001,2]
[348614036,1736674243695,-2314.59940754,0.0001,2]
[348614037,1736674243706,-390.522914,0.0001,2]
[348614040,1736674243750,-5022.75,0.0001,2]
[348614042,1736674243763,-9485.39852892,0.0001,2]
[348614045,1736674243774,-779147.28117316,0.0001,2]
[348614267,1736674246430,-479.66,9.999e-05,2]
[348614280,1736674246541,-403.42628405,9.999e-05,2]
[348614285,1736674246604,-423.20371595,9.999e-05,2]
[348614287,1736674246613,-500.0,9.999e-05,2]
[348614288,1736674246622,-339.35993715,9.999e-05,2]
[348614289,1736674246665,-275.68730171,9.999e-05,2]
[348614290,1736674246674,-5872.46537856,0.0001,2]
[348614291,1736674246685,-577.61498513,0.0001,2]
[348614292,1736674246829,-971.40398,0.0001,2]
[348614718,1736674290750,150.0,0.00019803,120]
[348614719,1736674298991,1139.28,8.219e-05,2]
[348614720,1736674470797,150.0,0.00019028,120]
[348614721,1736674530822,150.0,0.00019887,120]
[348614722,1736674590847,150.0,0.00022399,120]
[348614723,1736674651309,150.0,0.00021321,120]
[348614724,1736674696964,380.0,0.00023,120]
[348614725,1736674740321,929.58164098,0.00023,120]
[348614726,1736674941006,500.0,9.999e-05,7]
[348614730,1736675146532,500.0,0.00023,120]
[348614731,1736675293556,1132.01,8.219e-05,2]
[348614739,1736675431743,-1000.0,8.979e-05,2]
[348614740,1736675431752,-300.0,8.998e-05,2]
[348614741,1736675431761,-10231.87065238,8.999e-05,2]
[348614742,1736675431772,-612.23105833,8.999e-05,2]
[348614743,1736675431883,-778.97789069,8.999e-05,2]
[348614744,1736675431969,-19914.75,8.999e-05,2]
[348614745,1736675431980,-14276.4903986,8.999e-05,2]
[348614746,1736675431990,-150.0,9e-05,2]
[348614747,1736675431999,-253.41757428,9e-05,2]
[348614748,1736675432008,-222.37492103,9e-05,2]
[348614749,1736675432017,-1420.1745427,9e-05,2]
[348614750,1736675432026,-214.3,9.004e-05,2]
[348614751,1736675432035,-250.0,9.101e-05,2]
[348614752,1736675432045,-150.0,9.13e-05,2]
[348614753,1736675432054,-180.62,9.134e-05,2]
[348614754,1736675432063,-871.92,9.278e-05,2]
[348614755,1736675432073,-300.0,9.278e-05,2]
[348614756,1736675432082,-1420.17454268,9.396e-05,2]
[348614757,1736675432091,-1420.17454268,9.792e-05,2]
[348614758,1736675432100,-420.0,9.898e-05,2]
[348614759,1736675432109,-17289.3313,9.898e-05,2]
[348614760,1736675432118,-226.6917,9.899e-05,2]
[348614761,1736675432128,-2549.2202,9.899e-05,2]
[348614762,1736675432137,-1379.4086,9.9e-05,2]
[348614763,1736675432146,-5858.8229326,9.9e-05,2]
[348614764,1736675432155,-3402.32997585,9.921e-05,2]
[348614765,1736675432164,-164.19667197,9.973e-05,2]
[348614766,1736675432173,-177.51165863,9.973e-05,2]
[348614767,1736675432182,-7688.93,9.973e-05,2]
[348614768,1736675432191,-150.99,9.973e-05,2]
[348614769,1736675432200,-150.99,9.973e-05,2]
[348614770,1736675432209,-299.99,9.973e-05,2]
[348614771,1736675432218,-159.85969479,9.973e-05,2]
[348614772,1736675432228,-500.0,9.973e-05,2]
[348614773,1736675432237,-159.84551394,9.973e-05,2]
[348614774,1736675432246,-150.87462386,9.973e-05,2]
[348614775,1736675432255,-500.0,9.973e-05,2]
[348614776,1736675432265,-500.0,9.973e-05,2]
[348614777,1736675432274,-3193.36,9.997e-05,2]
[348614778,1736675432283,-500.0,9.997e-05,2]
[348614779,1736675432292,-2347.31,9.997e-05,2]
[348614780,1736675432301,-3558.9,9.997e-05,2]
[348614781,1736675432310,-2030.89,9.997e-05,2]
[348614782,1736675432319,-500.0,9.997e-05,2]
[348614783,1736675432328,-1392.71,9.997e-05,2]
[348614784,1736675432337,-3520.67,9.997e-05,2]
[348614785,1736675432346,-565.02,9.997e-05,2]
[348614786,1736675432355,-500.0,9.997e-05,2]
[348614787,1736675432364,-500.0,9.997e-05,2]
[348614788,1736675432373,-1304.66,9.997e-05,2]
[348614789,1736675432382,-1081.98,9.997e-05,2]
[348614790,1736675432391,-500.0,9.997e-05,2]
[348614791,1736675432400,-642.82,9.997e-05,2]
[348614792,1736675432409,-1112.83,9.997e-05,2]
[348614793,1736675432418,-1006.52,9.998e-05,2]
[348614794,1736675432427,-2076.42,9.998e-05,2]
[348614795,1736675432436,-500.0,9.998e-05,2]
[348614796,1736675432446,-500.0,9.998e-05,2]
[348614797,1736675432455,-187.34724921,9.998e-05,2]
[348614798,1736675436800,-3738.0836,9.899e-05,2]
[348614799,1736675436810,-2217.89,9.997e-05,2]
[348614800,1736675436819,-247.54028467,9.998e-05,2]
[348614801,1736675436829,-500.0,9.998e-05,2]
[348614802,1736675436838,-500.0,9.998e-05,2]
[348614803,1736675436848,-759.1,9.998e-05,2]
[348614804,1736675436858,-25.73710843,9.998e-05,2]
[348614809,1736675437708,-474.93292987,9.998e-05,2]
[348614810,1736675437718,-500.0,9.998e-05,2]
[348614811,1736675437727,-500.0,9.998e-05,2]
[348614812,1736675437736,-500.0,9.998e-05,2]
[348614813,1736675437745,-500.0,9.998e-05,2]
[348614814,1736675437754,-500.0,9.998e-05,2]
[348614815,1736675437763,-599.47,9.998e-05,2]
[348614816,1736675437772,-500.0,9.998e-05,2]
[348614817,1736675437781,-1182.12,9.998e-05,2]
[348614818,1736675437790,-500.0,9.998e-05,2]
[348614819,1736675437800,-884.27,9.998e-05,2]
[348614820,1736675437811,-501.97664265,9.998e-05,2]
[348614821,1736675437822,-500.0,9.998e-05,2]
[348614822,1736675437833,-500.0,9.998e-05,2]
[348614823,1736675437842,-500.0,9.998e-05,2]
[348614824,1736675437852,-997.89,9.998e-05,2]
[348614825,1736675437867,-500.0,9.998e-05,2]
[348614827,1736675437876,-500.0,9.998e-05,2]
[348614828,1736675437885,-683.75,9.998e-05,2]
[348614830,1736675437894,-500.0,9.998e-05,2]
[348614832,1736675437905,-500.56860409,9.998e-05,2]
[348614834,1736675437914,-500.0,9.998e-05,2]
[348614835,1736675437924,-812.85,9.998e-05,2]
[348614837,1736675437934,-500.0,9.998e-05,2]
[348614839,1736675437944,-500.0,9.998e-05,2]
[348614840,1736675437953,-500.0,9.998e-05,2]
[348614842,1736675437962,-500.0,9.998e-05,2]
[348614844,1736675437971,-500.0,9.998e-05,2]
[348614846,1736675437980,-611.99189917,9.998e-05,2]
[348614847,1736675437989,-521.46,9.998e-05,2]
[348614850,1736675437998,-500.77169469,9.998e-05,2]
[348614853,1736675438007,-500.0,9.998e-05,2]
[348614856,1736675438016,-500.0,9.998e-05,2]
[348614859,1736675438025,-500.0,9.998e-05,2]
[348614861,1736675438034,-500.0,9.998e-05,2]
[348614864,1736675438043,-776.6,9.998e-05,2]
[348614867,1736675438052,-500.89737399,9.998e-05,2]
[348614870,1736675438062,-500.0,9.998e-05,2]
[348614873,1736675438071,-500.0,9.998e-05,2]
[348614875,1736675438081,-500.0,9.998e-05,2]
[348614877,1736675438090,-500.0,9.998e-05,2]
[348614878,1736675438099,-500.0,9.998e-05,2]
[348614879,1736675438108,-498.69132494,9.998e-05,2]
[348614880,1736675438117,-500.0,9.998e-05,2]
[348614881,1736675438127,-500.0,9.998e-05,2]
[348614882,1736675438136,-1007.15,9.998e-05,2]
[348614883,1736675438145,-500.0,9.998e-05,2]
[348614884,1736675438154,-893.71,9.998e-05,2]
[348614885,1736675438163,-500.0,9.998e-05,2]
[348614886,1736675438172,-955.87,9.998e-05,2]
[348614887,1736675438181,-500.0,9.998e-05,2]
[348614888,1736675438191,-500.0,9.998e-05,2]
[348614889,1736675438199,-500.0,9.998e-05,2]
[348614890,1736675438208,-500.0,9.998e-05,2]
[348614891,1736675438218,-500.0,9.998e-05,2]
[348614892,1736675438227,-500.0,9.998e-05,2]
[348614893,1736675438236,-500.0,9.998e-05,2]
[348614895,1736675438245,-500.0,9.998e-05,2]
[348614897,1736675438254,-500.0,9.998e-05,2]
[348614899,1736675438263,-500.0,9.998e-05,2]
[348614901,1736675438272,-545.95,9.998e-05,2]
[348614903,1736675438281,-500.0,9.998e-05,2]
[348614905,1736675438290,-500.0,9.998e-05,2]
[348614907,1736675438299,-1075.8,9.998e-05,2]
[348614909,1736675438308,-500.0,9.998e-05,2]
[348614911,1736675438317,-704.4,9.998e-05,2]
[348614913,1736675438327,-579.98,9.998e-05,2]
[348614915,1736675438337,-500.0,9.998e-05,2]
[348614917,1736675438346,-259.37264553,9.998e-05,2]
[348614921,1736675438373,-274.91735447,9.998e-05,2]
[348614923,1736675438382,-961.99,9.998e-05,2]
[348614925,1736675438391,-529.78,9.998e-05,2]
[348614927,1736675438400,-500.0,9.998e-05,2]
[348614929,1736675438409,-987.1,9.998e-05,2]
[348614931,1736675438419,-885.17,9.998e-05,2]
[348614933,1736675438427,-510.82,9.998e-05,2]
[348614935,1736675438436,-500.0,9.998e-05,2]
[348614937,1736675438445,-728.25,9.998e-05,2]
[348614939,1736675438454,-1151.35,9.998e-05,2]
[348614941,1736675438463,-500.0,9.998e-05,2]
[348614943,1736675438472,-500.0,9.998e-05,2]
[348614945,1736675438481,-500.0,9.998e-05,2]
[348614947,1736675438492,-500.0,9.998e-05,2]
[348614949,1736675438502,-1025.8,9.998e-05,2]
[348614951,1736675438511,-500.0,9.998e-05,2]
[348614953,1736675438520,-595.06,9.998e-05,2]
[348614955,1736675438529,-500.0,9.998e-05,2]
[348614957,1736675438538,-500.0,9.998e-05,2]
[348614959,1736675438548,-500.0,9.998e-05,2]
[348614961,1736675438556,-500.0,9.998e-05,2]
[348614963,1736675438566,-611.28,9.998e-05,2]
[348614965,1736675438575,-1298.19,9.998e-05,2]
[348614967,1736675438585,-500.0,9.998e-05,2]
[348614969,1736675438594,-500.0,9.998e-05,2]
[348614970,1736675438604,-502.45473375,9.998e-05,2]
[348614973,1736675438614,-500.0,9.998e-05,2]
[348614974,1736675438623,-503.3624657,9.998e-05,2]
[348614976,1736675438633,-500.0,9.998e-05,2]
[348614979,1736675438642,-500.0,9.998e-05,2]
[348614980,1736675438651,-500.0,9.998e-05,2]
[348614982,1736675438660,-500.0,9.998e-05,2]
[348614984,1736675438669,-500.0,9.998e-05,2]
[348614986,1736675438678,-507.20683774,9.998e-05,2]
[348614989,1736675438688,-500.0,9.998e-05,2]
[348614990,1736675438698,-500.0,9.998e-05,2]
[348614992,1736675438708,-500.0,9.998e-05,2]
[348614995,1736675438718,-500.0,9.998e-05,2]
[348614996,1736675438727,-500.0,9.998e-05,2]
[348614999,1736675438737,-500.0,9.998e-05,2]
[348615001,1736675438747,-509.05097093,9.998e-05,2]
[348615002,1736675438756,-500.0,9.998e-05,2]
[348615005,1736675438766,-500.0,9.998e-05,2]
[348615006,1736675438775,-503.38872572,9.998e-05,2]
[348615008,1736675438785,-500.0,9.998e-05,2]
[348615011,1736675438794,-502.7593256,9.998e-05,2]
[348615013,1736675438804,-826.81,9.998e-05,2]
[348615015,1736675438813,-505.43994069,9.998e-05,2]
[348615017,1736675438824,-884.37,9.998e-05,2]
[348615018,1736675438835,-500.0,9.998e-05,2]
[348615020,1736675438844,-502.07346081,9.998e-05,2]
[348615022,1736675438854,-500.0,9.998e-05,2]
[348615025,1736675438868,-617.5769047,9.998e-05,2]
[348615026,1736675438879,-500.0,9.998e-05,2]
[348615028,1736675438888,-799.89,9.998e-05,2]
[348615030,1736675438898,-543.07,9.998e-05,2]
[348615032,1736675438907,-626.7299245,9.998e-05,2]
[348615034,1736675438915,-504.00607258,9.998e-05,2]
[348615036,1736675438924,-500.0,9.998e-05,2]
[348615038,1736675438933,-503.32273647,9.998e-05,2]
[348615040,1736675438942,-503.5247854,9.998e-05,2]
[348615042,1736675438951,-500.0,9.998e-05,2]
[348615044,1736675438960,-504.13476415,9.998e-05,2]
[348615046,1736675438969,-502.38437184,9.998e-05,2]
[348615048,1736675438978,-500.0,9.998e-05,2]
[348615050,1736675438988,-500.0,9.998e-05,2]
[348615052,1736675438997,-500.0,9.998e-05,2]
[348615054,1736675439006,-500.0,9.998e-05,2]
[348615056,1736675439015,-798.01,9.998e-05,2]
[348615058,1736675439023,-500.0,9.998e-05,2]
[348615060,1736675439032,-1297.58,9.998e-05,2]
[348615062,1736675439041,-500.0,9.998e-05,2]
[348615064,1736675439050,-500.0,9.998e-05,2]
[348615066,1736675439059,-500.0,9.998e-05,2]
[348615068,1736675439068,-500.0,9.998e-05,2]
[348615070,1736675439078,-500.0,9.998e-05,2]
[348615072,1736675439088,-500.0,9.998e-05,2]
[348615074,1736675439097,-500.0,9.998e-05,2]
[348615076,1736675439106,-500.0,9.998e-05,2]
[348615078,1736675439116,-740.98,9.998e-05,2]
[348615080,1736675439125,-500.0,9.998e-05,2]
[348615082,1736675439134,-504.7193388,9.998e-05,2]
[348615084,1736675439143,-1248.28,9.998e-05,2]
[348615086,1736675439152,-500.0,9.998e-05,2]
[348615088,1736675439161,-500.0,9.998e-05,2]
[348615090,1736675439171,-892.94,9.998e-05,2]
[348615092,1736675439180,-1987.14421238,9.998e-05,2]
[348615094,1736675439189,-2681.32,9.998e-05,2]
[348615096,1736675439198,-500.0,9.998e-05,2]